fUSD/lending_fUSD_20240117
["ID","MTS","AMOUNT","RATE_DAILY","PERIOD"]
[311885232,1705488648786,-157.73589,0.00021969,2]
[311885233,1705488648796,-967.58944412,0.00021974,2]
[311885234,1705488648806,-881.0,0.00021999,2]
[311885235,1705488648815,-1000.0,0.00022,2]
[311885236,1705488648825,-1250.0,0.00022,3]
[311885237,1705488648835,-200.0,0.00022013,2]
[311885238,1705488648845,-800.0,0.00022013,2]
[311885239,1705488648855,-800.0,0.00022013,2]
[311885240,1705488648865,-800.0,0.00022013,2]
[311885241,1705488648875,-6728.94431133,0.00022016,2]
[311885242,1705488648884,-157.94,0.0002206,2]
[311885243,1705488648895,-167.64708971,0.00022091,2]
[311885244,1705488648905,-725.85713185,0.00022091,2]
[311885245,1705488648914,-722.6115767,0.00022091,2]
[311885246,1705488648924,-2672.93005736,0.00022091,2]
[311885247,1705488648934,-660.80159074,0.00022091,2]
[311885248,1705488648945,-658.20043251,0.00022091,2]
[311885249,1705488648957,-6728.94431133,0.00022116,2]
[311885250,1705488648967,-967.58944412,0.0002213,2]
[311885251,1705488648977,-3596.51818225,0.00022182,3]
[311885252,1705488648994,-202.67,0.00022182,2]
[311885253,1705488649004,-14727.78219561,0.00022189,2]
[311885254,1705488649014,-6524.51,0.00022189,2]
[311885255,1705488649025,-6524.51,0.00022189,2]
[311885256,1705488649038,-6524.51,0.00022189,2]
[311885257,1705488649048,-6524.51,0.00022189,2]
[311885258,1705488649058,-6524.51,0.00022189,2]
[311885259,1705488649068,-6524.51,0.00022189,2]
[311885260,1705488649078,-155.41027789,0.0002219,2]
[311885261,1705488649089,-3295.67153385,0.0002219,2]
[311885262,1705488649098,-718.66,0.0002219,2]
[311885263,1705488649108,-718.66,0.0002219,2]
[311885264,1705488649118,-718.66,0.0002219,2]
[311885265,1705488649128,-718.66,0.0002219,2]
[311885266,1705488649139,-718.66,0.0002219,2]
[311885267,1705488649149,-718.66,0.0002219,2]
[311885268,1705488649159,-718.66,0.0002219,2]
[311885269,1705488649169,-718.66,0.0002219,2]
[311885270,1705488649180,-6524.51,0.0002219,2]
[311885271,1705488649190,-6524.51,0.0002219,2]
[311885272,1705488649200,-6524.51,0.0002219,2]
[311885273,1705488649211,-1273180.95925341,0.00022191,3]
[311885274,1705488649221,-712.39,0.00022191,2]
[311885275,1705488649231,-500.0,0.00022191,2]
[311885276,1705488649241,-307.56559082,0.00022191,2]
[311885277,1705488649251,-500.0,0.00022191,2]
[311885278,1705488649261,-500.0,0.00022191,2]
[311885279,1705488649271,-500.0,0.00022191,2]
[311885280,1705488649281,-500.0,0.00022191,2]
[311885281,1705488649291,-500.0,0.00022191,2]
[311885282,1705488649301,-500.0,0.00022191,2]
[311885283,1705488649311,-579.63,0.00022191,2]
[311885284,1705488649321,-500.0,0.00022191,2]
[311885285,1705488649331,-500.0,0.00022191,2]
[311885286,1705488649340,-800.18,0.00022191,2]
[311885287,1705488649350,-642.05,0.00022191,2]
[311885288,1705488649360,-500.0,0.00022191,2]
[311885289,1705488649370,-500.0,0.00022191,2]
[311885290,1705488649380,-500.0,0.00022191,2]
[311885291,1705488649390,-570.98,0.00022191,2]
[311885292,1705488649399,-596.49,0.00022191,2]
[311885293,1705488649409,-724.09,0.00022191,2]
[311885294,1705488649419,-500.0,0.00022191,2]
[311885295,1705488649429,-500.0,0.00022191,2]
[311885296,1705488649438,-500.0,0.00022191,2]
[311885297,1705488649448,-500.0,0.00022191,2]
[311885298,1705488649458,-500.0,0.00022191,2]
[311885299,1705488649469,-500.0,0.00022191,2]
[311885300,1705488649479,-500.0,0.00022191,2]
[311885301,1705488649489,-508.21,0.00022191,2]
[311885302,1705488649499,-632.65,0.00022191,2]
[311885303,1705488649509,-518.88,0.00022191,2]
[311885304,1705488649519,-500.0,0.00022191,2]
[311885305,1705488649528,-512.93,0.00022191,2]
[311885306,1705488649538,-500.0,0.00022191,2]
[311885307,1705488649548,-649.06,0.00022191,2]
[311885308,1705488649558,-500.0,0.00022191,2]
[311885309,1705488649567,-500.0,0.00022191,2]
[311885310,1705488649577,-451.30032454,0.00022191,2]
[311885311,1705488649587,-630.68,0.00022191,2]
[311885312,1705488649597,-500.0,0.00022191,2]
[311885313,1705488649607,-396.58840914,0.00022191,2]
[311885314,1705488649617,-500.0,0.00022191,2]
[311885315,1705488649627,-500.0,0.00022191,2]
[311885316,1705488649636,-500.0,0.00022191,2]
[311885317,1705488649646,-514.197498,0.00022191,2]
[311885318,1705488649655,-500.0,0.00022191,2]
[311885319,1705488649665,-500.0,0.00022191,2]
[311885320,1705488649675,-500.0,0.00022191,2]
[311885321,1705488649684,-571.66,0.00022191,2]
[311885322,1705488649694,-500.0,0.00022191,2]
[311885323,1705488649703,-500.0,0.00022191,2]
[311885324,1705488649714,-500.0,0.00022191,2]
[311885325,1705488649723,-500.0,0.00022191,2]
[311885326,1705488649732,-658.8,0.00022191,2]
[311885327,1705488649741,-745.11,0.00022191,2]
[311885328,1705488649751,-500.0,0.00022191,2]
[311885329,1705488649761,-500.0,0.00022191,2]
[311885330,1705488649770,-802.88,0.00022191,2]
[311885331,1705488649780,-552.08,0.00022191,2]
[311885332,1705488649790,-500.0,0.00022191,2]
[311885333,1705488649799,-500.0,0.00022191,2]
[311885334,1705488649809,-500.0,0.00022191,2]
[311885335,1705488649818,-500.0,0.00022191,2]
[311885336,1705488649828,-500.0,0.00022191,2]
[311885337,1705488649837,-753.52,0.00022191,2]
[311885338,1705488649847,-727.92,0.00022191,2]
[311885339,1705488649856,-500.0,0.00022191,2]
[311885340,1705488649865,-500.0,0.00022191,2]
[311885341,1705488649875,-765.5,0.00022191,2]
[311885342,1705488649884,-939.57,0.00022191,2]
[311885343,1705488649893,-540.64,0.00022191,2]
[311885344,1705488649903,-611.2,0.00022191,2]
[311885345,1705488649913,-500.0,0.00022191,2]
[311885346,1705488649923,-511.47,0.00022191,2]
[311885347,1705488649933,-500.0,0.00022191,2]
[311885348,1705488649945,-685.19,0.00022191,2]
[311885349,1705488650318,-500.0,0.00022191,2]
[311885350,1705488650334,-500.0,0.00022191,2]
[311885351,1705488650343,-500.0,0.00022191,2]
[311885352,1705488650353,-500.0,0.00022191,2]
[311885353,1705488650367,-500.0,0.00022191,2]
[311885354,1705488650377,-774.57,0.00022191,2]
[311885355,1705488650387,-500.0,0.00022191,2]
[311885356,1705488650397,-500.0,0.00022191,2]
[311885357,1705488650408,-500.0,0.00022191,2]
[311885358,1705488650418,-500.0,0.00022191,2]
[311885359,1705488650428,-500.0,0.00022191,2]
[311885360,1705488650438,-500.0,0.00022191,2]
[311885361,1705488650449,-500.0,0.00022191,2]
[311885362,1705488650460,-500.0,0.00022191,2]
[311885363,1705488650469,-500.0,0.00022191,2]
[311885364,1705488650479,-644.61,0.00022191,2]
[311885365,1705488650489,-500.0,0.00022191,2]
[311885366,1705488650499,-500.0,0.00022191,2]
[311885367,1705488650509,-500.0,0.00022191,2]
[311885368,1705488650519,-690.08,0.00022191,2]
[311885369,1705488650529,-500.0,0.00022191,2]
[311885370,1705488650539,-500.0,0.00022191,2]
[311885371,1705488650549,-1181.88,0.00022191,2]
[311885372,1705488650559,-500.0,0.00022191,2]
[311885373,1705488650569,-500.0,0.00022191,2]
[311885374,1705488650579,-500.0,0.00022191,2]
[311885375,1705488650591,-553.63,0.00022191,2]
[311885376,1705488650601,-500.0,0.00022191,2]
[311885377,1705488650611,-500.0,0.00022191,2]
[311885378,1705488650621,-500.0,0.00022191,2]
[311885379,1705488650632,-500.0,0.00022191,2]
[311885380,1705488650642,-500.0,0.00022191,2]
[311885381,1705488650651,-500.0,0.00022191,2]
[311885382,1705488650661,-500.0,0.00022191,2]
[311885383,1705488650671,-873.71,0.00022191,2]
[311885384,1705488650680,-500.0,0.00022191,2]
[311885385,1705488650690,-500.0,0.00022191,2]
[311885386,1705488650700,-500.0,0.00022191,2]
[311885387,1705488650710,-323.45045551,0.00022191,2]
[311885388,1705488650721,-677.86,0.00022191,2]
[311885389,1705488650731,-500.0,0.00022191,2]
[311885390,1705488650741,-500.0,0.00022191,2]
[311885391,1705488650751,-500.0,0.00022191,2]
[311885392,1705488650761,-500.0,0.00022191,2]
[311885393,1705488650772,-502.73,0.00022191,2]
[311885394,1705488650782,-740.36,0.00022191,2]
[311885395,1705488650791,-500.0,0.00022191,2]
[311885396,1705488650802,-504.68360203,0.00022191,2]
[311885397,1705488650811,-500.0,0.00022191,2]
[311885398,1705488650822,-256.20768783,0.00022191,2]
[311885399,1705488650832,-536.83952426,0.00022191,2]
[311885400,1705488650843,-1074.19,0.00022191,2]
[311885401,1705488650854,-500.0,0.00022191,2]
[311885402,1705488650864,-500.0,0.00022191,2]
[311885403,1705488650874,-904.87,0.00022191,2]
[311885404,1705488650886,-718.56,0.00022191,2]
[311885405,1705488650896,-500.0,0.00022191,2]
[311885406,1705488650907,-707.98,0.00022191,2]
[311885407,1705488650918,-960.71,0.00022191,2]
[311885408,1705488650928,-500.0,0.00022191,2]
[311885409,1705488650938,-272.43220385,0.00022191,2]
[311885410,1705488650948,-500.0,0.00022191,2]
[311885411,1705488650961,-566.2,0.00022191,2]
[311885412,1705488650971,-500.0,0.00022191,2]
[311885413,1705488650982,-677.46,0.00022191,2]
[311885414,1705488650992,-500.0,0.00022191,2]
[311885415,1705488651004,-500.0,0.00022191,2]
[311885416,1705488651014,-227.86,0.00022191,2]
[311885417,1705488651025,-500.0,0.00022191,2]
[311885418,1705488651035,-1389.59,0.00022191,2]
[311885419,1705488651046,-500.0,0.00022191,2]
[311885420,1705488651056,-500.0,0.00022191,2]
[311885421,1705488651066,-1178.73,0.00022191,2]
[311885422,1705488651076,-500.0,0.00022191,2]
[311885423,1705488651086,-500.0,0.00022191,2]
[311885424,1705488651097,-500.0,0.00022191,2]
[311885425,1705488651107,-531.78,0.00022191,2]
[311885426,1705488651117,-622.32,0.00022191,2]
[311885427,1705488651127,-500.0,0.00022191,2]
[311885428,1705488651137,-820.33,0.00022191,2]
[311885429,1705488651148,-500.0,0.00022191,2]
[311885430,1705488651158,-589.61,0.00022191,2]
[311885431,1705488651168,-1106.6,0.00022191,2]
[311885432,1705488651178,-500.0,0.00022191,2]
[311885433,1705488651188,-500.0,0.00022191,2]
[311885434,1705488651198,-500.0,0.00022191,2]
[311885435,1705488651209,-798.29,0.00022191,2]
[311885436,1705488651219,-1056.32,0.00022191,2]
[311885437,1705488651229,-500.0,0.00022191,2]
[311885438,1705488651239,-500.0,0.00022191,2]
[311885439,1705488651249,-868.15,0.00022191,2]
[311885440,1705488651260,-1836.95,0.00022191,2]
[311885441,1705488651270,-648.15577476,0.00022191,2]
[311885442,1705488651281,-575.5,0.00022191,2]
[311885443,1705488651291,-500.0,0.00022191,2]
[311885444,1705488651301,-1051.23,0.00022191,2]
[311885445,1705488651312,-1008.33,0.00022191,2]
[311885446,1705488651322,-500.0,0.00022191,2]
[311885447,1705488651332,-711.68,0.00022191,2]
[311885448,1705488651342,-500.0,0.00022191,2]
[311885449,1705488651352,-1132.55,0.00022191,2]
[311885450,1705488651362,-500.0,0.00022191,2]
[311885451,1705488651372,-672.85,0.00022191,2]
[311885452,1705488651382,-747.7,0.00022191,2]
[311885453,1705488651392,-964.78,0.00022191,2]
[311885454,1705488651402,-755.88,0.00022191,2]
[311885455,1705488651412,-699.7,0.00022191,2]
[311885456,1705488651423,-500.0,0.00022191,2]
[311885457,1705488651433,-200.42,0.00022191,2]
[311885458,1705488651443,-905.03,0.00022191,2]
[311885459,1705488651453,-500.0,0.00022191,2]
[311885460,1705488651464,-500.0,0.00022191,2]
[311885461,1705488651475,-831.6,0.00022191,2]
[311885462,1705488651484,-694.45,0.00022191,2]
[311885463,1705488651495,-500.0,0.00022191,2]
[311885464,1705488651504,-822.23,0.00022191,2]
[311885465,1705488651515,-500.0,0.00022191,2]
[311885466,1705488651525,-500.0,0.00022191,2]
[311885467,1705488651535,-500.0,0.00022191,2]
[311885468,1705488651545,-914.81,0.00022191,2]
[311885469,1705488651555,-654.85,0.00022191,2]
[311885470,1705488651565,-631.93,0.00022191,2]
[311885471,1705488651575,-500.0,0.00022191,2]
[311885472,1705488651586,-500.0,0.00022191,2]
[311885473,1705488651596,-899.61,0.00022191,2]
[311885474,1705488651606,-500.0,0.00022191,2]
[311885475,1705488651617,-540.13000097,0.00022191,2]
[311885476,1705488651626,-1171.31,0.00022191,2]
[311885477,1705488651636,-597.57,0.00022191,2]
[311885478,1705488651646,-620.34,0.00022191,2]
[311885479,1705488651656,-792.09,0.00022191,2]
[311885480,1705488651666,-969.64,0.00022191,2]
[311885481,1705488651676,-500.0,0.00022191,2]
[311885482,1705488651686,-500.0,0.00022191,2]
[311885483,1705488651696,-500.0,0.00022191,2]
[311885484,1705488651706,-598.5,0.00022191,2]
[311885485,1705488651717,-500.0,0.00022191,2]
[311885486,1705488651726,-634.53,0.00022191,2]
[311885487,1705488651736,-500.0,0.00022191,2]
[311885488,1705488651745,-1668.04,0.00022191,2]
[311885489,1705488651755,-500.0,0.00022191,2]
[311885490,1705488651765,-500.0,0.00022191,2]
[311885491,1705488651775,-616.72,0.00022191,2]
[311885492,1705488651784,-500.0,0.00022191,2]
[311885493,1705488651794,-888.02,0.00022191,2]
[311885494,1705488651804,-500.0,0.00022191,2]
[311885495,1705488651814,-994.03,0.00022191,2]
[311885496,1705488651823,-547.66,0.00022191,2]
[311885497,1705488651833,-500.0,0.00022191,2]
[311885498,1705488651844,-695.07,0.00022191,2]
[311885499,1705488651859,-500.0,0.00022191,2]
[311885500,1705488651868,-500.0,0.00022191,2]
[311885501,1705488651877,-795.25,0.00022191,2]
[311885502,1705488651886,-837.89,0.00022191,2]
[311885503,1705488651896,-529.62054769,0.00022191,2]
[311885504,1705488651905,-1228.98,0.00022191,2]
[311885505,1705488651916,-500.0,0.00022191,2]
[311885506,1705488651926,-500.0,0.00022191,2]
[311885507,1705488651935,-500.0,0.00022191,2]
[311885508,1705488651946,-500.0,0.00022191,2]
[311885509,1705488651959,-500.0,0.00022191,2]
[311885510,1705488651970,-1214.3,0.00022191,2]
[311885511,1705488651980,-500.0,0.00022191,2]
[311885512,1705488651990,-500.0,0.00022191,2]
[311885513,1705488652001,-500.0,0.00022191,2]
[311885514,1705488652011,-500.0,0.00022191,2]
[311885515,1705488652021,-500.0,0.00022191,2]
[311885516,1705488652031,-1218.94,0.00022191,2]
[311885517,1705488652041,-500.0,0.00022191,2]
[311885518,1705488652050,-1117.39,0.00022191,2]
[311885519,1705488652060,-500.0,0.00022191,2]
[311885520,1705488652070,-615.47,0.00022191,2]
[311885521,1705488652080,-500.0,0.00022191,2]
[311885522,1705488652089,-656.17,0.00022191,2]
[311885523,1705488652099,-778.26,0.00022191,2]
[311885524,1705488652108,-500.0,0.00022191,2]
[311885525,1705488652118,-520.74,0.00022191,2]
[311885526,1705488652128,-592.54,0.00022191,2]
[311885527,1705488652137,-500.0,0.00022191,2]
[311885528,1705488652147,-521.31,0.00022191,2]
[311885529,1705488652157,-500.0,0.00022191,2]
[311885530,1705488652166,-500.0,0.00022191,2]
[311885531,1705488652176,-598.19,0.00022191,2]
[311885532,1705488652186,-666.13,0.00022191,2]
[311885533,1705488652195,-500.0,0.00022191,2]
[311885534,1705488652205,-903.47,0.00022191,2]
[311885535,1705488652216,-961.89,0.00022191,2]
[311885536,1705488652226,-500.0,0.00022191,2]
[311885537,1705488652236,-500.0,0.00022191,2]
[311885538,1705488652245,-500.0,0.00022191,2]
[311885539,1705488652256,-500.0,0.00022191,2]
[311885540,1705488652265,-1584.41,0.00022191,2]
[311885541,1705488652275,-500.0,0.00022191,2]
[311885542,1705488652284,-1028.69,0.00022191,2]
[311885543,1705488652294,-500.0,0.00022191,2]
[311885544,1705488652304,-594.3,0.00022191,2]
[311885545,1705488652314,-678.82,0.00022191,2]
[311885546,1705488652323,-794.64,0.00022191,2]
[311885547,1705488652333,-262.02271267,0.00022191,2]
[311885548,1705488652343,-945.13,0.00022191,2]
[311885549,1705488652352,-500.0,0.00022191,2]
[311885550,1705488652362,-500.0,0.00022191,2]
[311885551,1705488652372,-1061.34,0.00022191,2]
[311885552,1705488652381,-500.0,0.00022191,2]
[311885553,1705488652391,-500.0,0.00022191,2]
[311885554,1705488652401,-1229.05,0.00022191,2]
[311885555,1705488652410,-300.18,0.00022191,2]
[311885556,1705488652420,-500.0,0.00022191,2]
[311885557,1705488652429,-500.0,0.00022191,2]
[311885558,1705488652439,-986.26,0.00022191,2]
[311885559,1705488652448,-1119.4,0.00022191,2]
[311885560,1705488652458,-500.0,0.00022191,2]
[311885561,1705488652469,-500.0,0.00022191,2]
[311885562,1705488652478,-511.94752854,0.00022191,2]
[311885563,1705488652487,-590.45,0.00022191,2]
[311885564,1705488652496,-500.0,0.00022191,2]
[311885565,1705488652506,-500.0,0.00022191,2]
[311885566,1705488652516,-500.0,0.00022191,2]
[311885567,1705488652526,-862.13,0.00022191,2]
[311885568,1705488652535,-500.0,0.00022191,2]
[311885569,1705488652544,-915.51,0.00022191,2]
[311885570,1705488652553,-744.21,0.00022191,2]
[311885571,1705488652563,-500.0,0.00022191,2]
[311885572,1705488652572,-500.0,0.00022191,2]
[311885573,1705488652582,-500.0,0.00022191,2]
[311885574,1705488652592,-500.0,0.00022191,2]
[311885575,1705488652602,-500.0,0.00022191,2]
[311885576,1705488652611,-719.3,0.00022191,2]
[311885577,1705488652620,-500.0,0.00022191,2]
[311885578,1705488652631,-500.0,0.00022191,2]
[311885579,1705488652640,-1324.42,0.00022191,2]
[311885580,1705488652650,-614.79690188,0.00022191,2]
[311885581,1705488652659,-1019.36,0.00022191,2]
[311885582,1705488652669,-500.0,0.00022191,2]
[311885583,1705488652679,-500.0,0.00022191,2]
[311885584,1705488652688,-500.0,0.00022191,2]
[311885585,1705488652698,-678.74,0.00022191,2]
[311885586,1705488652708,-500.0,0.00022191,2]
[311885587,1705488652719,-942.81,0.00022191,2]
[311885588,1705488652728,-932.38,0.00022191,2]
[311885589,1705488652738,-547.85,0.00022191,2]
[311885590,1705488652748,-500.0,0.00022191,2]
[311885591,1705488652870,-537.01,0.00022191,2]
[311885592,1705488652880,-637.06,0.00022191,2]
[311885593,1705488652889,-855.55,0.00022191,2]
[311885594,1705488652898,-500.0,0.00022191,2]
[311885595,1705488652908,-500.0,0.00022191,2]
[311885596,1705488652918,-500.0,0.00022191,2]
[311885597,1705488652927,-280.52,0.00022191,2]
[311885598,1705488652936,-500.0,0.00022191,2]
[311885599,1705488652947,-670.15,0.00022191,2]
[311885600,1705488652957,-705.91,0.00022191,2]
[311885601,1705488652967,-868.48,0.00022191,2]
[311885602,1705488652976,-996.55,0.00022191,2]
[311885603,1705488652985,-887.57,0.00022191,2]
[311885604,1705488652995,-694.66,0.00022191,2]
[311885605,1705488653005,-500.0,0.00022191,2]
[311885606,1705488653014,-740.27,0.00022191,2]
[311885607,1705488653024,-1588.19,0.00022191,2]
[311885608,1705488653034,-500.0,0.00022191,2]
[311885609,1705488653044,-1135.28,0.00022191,2]
[311885610,1705488653053,-1130.47,0.00022191,2]
[311885611,1705488653062,-977.9,0.00022191,2]
[311885612,1705488653072,-513.27197284,0.00022191,2]
[311885613,1705488653081,-785.37,0.00022191,2]
[311885614,1705488653090,-500.0,0.00022191,2]
[311885615,1705488653099,-500.0,0.00022191,2]
[311885616,1705488653108,-2046.47,0.00022191,2]
[311885617,1705488653118,-965.14,0.00022191,2]
[311885618,1705488653127,-1188.04,0.00022191,2]
[311885619,1705488653136,-1023.75,0.00022191,2]
[311885620,1705488653146,-933.13,0.00022191,2]
[311885621,1705488653154,-500.0,0.00022191,2]
[311885622,1705488653164,-910.24,0.00022191,2]
[311885623,1705488653173,-500.0,0.00022191,2]
[311885624,1705488653183,-500.0,0.00022191,2]
[311885625,1705488653192,-1135.09,0.00022191,2]
[311885626,1705488653201,-1351.0,0.00022191,2]
[311885627,1705488653210,-655.99,0.00022191,2]
[311885628,1705488653220,-979.39,0.00022191,2]
[311885629,1705488653229,-1037.67,0.00022191,2]
[311885630,1705488653238,-500.0,0.00022191,2]
[311885631,1705488653247,-500.0,0.00022191,2]
[311885632,1705488653256,-1995.97,0.00022191,2]
[311885633,1705488653265,-500.0,0.00022191,2]
[311885634,1705488653274,-1189.86,0.00022191,2]
[311885635,1705488653283,-756.56,0.00022191,2]
[311885636,1705488653292,-878.45,0.00022191,2]
[311885637,1705488653301,-1371.73,0.00022191,2]
[311885638,1705488653311,-3095.94,0.00022191,2]
[311885639,1705488653320,-529.81,0.00022191,2]
[311885640,1705488653329,-594.94,0.00022191,2]
[311885641,1705488653338,-500.0,0.00022191,2]
[311885642,1705488653347,-2298.43,0.00022191,2]
[311885643,1705488653356,-617.42,0.00022191,2]
[311885644,1705488653365,-5193.18,0.00022191,2]
[311885645,1705488653374,-1218.87,0.00022191,2]
[311885646,1705488653383,-620.15,0.00022191,2]
[311885647,1705488653392,-981.65,0.00022191,2]
[311885648,1705488653401,-223.21555271,0.00022191,2]
[311885649,1705488653410,-500.0,0.00022191,2]
[311885650,1705488653418,-738.68,0.00022191,2]
[311885651,1705488653428,-500.0,0.00022191,2]
[311885652,1705488653436,-670.27,0.00022191,2]
[311885653,1705488653445,-1167.72,0.00022191,2]
[311885654,1705488653454,-578.64,0.00022191,2]
[311885655,1705488653464,-532.8,0.00022191,2]
[311885656,1705488653473,-507.99,0.00022191,2]
[311885657,1705488653482,-500.0,0.00022191,2]
[311885658,1705488653491,-783.03,0.00022191,2]
[311885659,1705488653500,-500.0,0.00022191,2]
[311885660,1705488653509,-754.06,0.00022191,2]
[311885661,1705488653518,-500.0,0.00022191,2]
[311885662,1705488653527,-1114.48,0.00022191,2]
[311885663,1705488653536,-500.0,0.00022191,2]
[311885664,1705488653545,-1645.96,0.00022191,2]
[311885665,1705488653554,-562.07,0.00022191,2]
[311885666,1705488653563,-674.36,0.00022191,2]
[311885667,1705488653573,-850.27,0.00022191,2]
[311885668,1705488653582,-624.91927977,0.00022191,2]
[311885669,1705488653591,-1835.63,0.00022191,2]
[311885670,1705488653600,-944.13,0.00022191,2]
[311885671,1705488653609,-500.0,0.00022191,2]
[311885672,1705488653619,-500.0,0.00022191,2]
[311885673,1705488653628,-1260.44,0.00022191,2]
[311885674,1705488653637,-500.0,0.00022191,2]
[311885675,1705488653645,-500.0,0.00022191,2]
[311885676,1705488653657,-500.0,0.00022191,2]
[311885677,1705488653665,-534.57,0.00022191,2]
[311885678,1705488653674,-1234.27,0.00022191,2]
[311885679,1705488653683,-490.30476938,0.00022191,2]
[311885680,1705488653692,-500.0,0.00022191,2]
[311885681,1705488653701,-500.0,0.00022191,2]
[311885682,1705488653710,-1206.55,0.00022191,2]
[311885683,1705488653720,-1361.06,0.00022191,2]
[311885684,1705488653729,-500.0,0.00022191,2]
[311885685,1705488653738,-500.0,0.00022191,2]
[311885686,1705488653747,-2353.5,0.00022191,2]
[311885687,1705488653756,-664.1,0.00022191,2]
[311885688,1705488653765,-500.0,0.00022191,2]
[311885689,1705488653774,-1094.02,0.00022191,2]
[311885690,1705488653783,-500.0,0.00022191,2]
[311885691,1705488653792,-500.0,0.00022191,2]
[311885692,1705488653801,-1283.36,0.00022191,2]
[311885693,1705488653810,-703.86,0.00022191,2]
[311885694,1705488653819,-1134.98,0.00022191,2]
[311885695,1705488653828,-980.0,0.00022191,2]
[311885696,1705488653837,-500.0,0.00022191,2]
[311885697,1705488653846,-500.0,0.00022191,2]
[311885698,1705488653855,-2469.88,0.00022191,2]
[311885699,1705488653865,-1012.89,0.00022191,2]
[311885700,1705488653875,-500.0,0.00022191,2]
[311885701,1705488653884,-1069.45,0.00022191,2]
[311885702,1705488653894,-500.0,0.00022191,2]
[311885703,1705488653903,-500.0,0.00022191,2]
[311885704,1705488653912,-975.4,0.00022191,2]
[311885705,1705488653921,-500.0,0.00022191,2]
[311885706,1705488653930,-500.0,0.00022191,2]
[311885707,1705488653940,-500.0,0.00022191,2]
[311885708,1705488653949,-500.0,0.00022191,2]
[311885709,1705488653962,-702.8,0.00022191,2]
[311885710,1705488653971,-732.0,0.00022191,2]
[311885711,1705488653980,-575.11,0.00022191,2]
[311885712,1705488653989,-934.6,0.00022191,2]
[311885713,1705488654000,-500.0,0.00022191,2]
[311885714,1705488654009,-1406.56,0.00022191,2]
[311885715,1705488654018,-500.0,0.00022191,2]
[311885716,1705488654029,-576.73,0.00022191,2]
[311885717,1705488654038,-500.0,0.00022191,2]
[311885718,1705488654047,-546.53,0.00022191,2]
[311885719,1705488654056,-764.4,0.00022191,2]
[311885720,1705488654065,-892.87,0.00022191,2]
[311885721,1705488654074,-342.07301881,0.00022191,2]
[311885722,1705488654084,-500.0,0.00022191,2]
[311885723,1705488654093,-657.06,0.00022191,2]
[311885724,1705488654103,-1356.54,0.00022191,2]
[311885725,1705488654112,-928.51,0.00022191,2]
[311885726,1705488654122,-662.42,0.00022191,2]
[311885727,1705488654131,-1053.66,0.00022191,2]
[311885728,1705488654141,-964.59,0.00022191,2]
[311885729,1705488654150,-1225.28,0.00022191,2]
[311885730,1705488654159,-475.87331146,0.00022191,2]
[311885731,1705488654168,-500.0,0.00022191,2]